{"text_format":"1","workbook":"xlsx","n_sheets":1,"sheets":["Addins"],"not_rendered":{"charts":0,"images":1,"macros":1,"external_links":0,"defined_names":1,"comments":0,"pivot_tables":0},"unopened":[],"bounds":{"document_bytes":16777216,"sheet_cells":100000,"rows_first":2000,"rows_last":500,"rows_between":2000,"halvings":0,"cell_chars":16384,"cell_head_chars":4096},"cells_cut":0,"cells_raw":0,"read":"whole","date_system":"1900"}

{"sheet":"Addins","index":0,"n_rows":25,"n_cols":3,"rows_kept":25,"cut":false,"hidden":false,"merged":[]}
[]
[]
[]
[null,"#","Installed addins"]
[null,1,"File Path: C:\\Program Files\\Microsoft Office 15\\Root\\Office15\\Library\\SOLVER\r\nFile Name: SOLVER.XLAM"]
[null,{"$f":"IF(C6=\"\", \"\", B5+1)","v":2},"File Path: C:\\Projects\\java\\data\\jmc\\excel\\xlloop\r\nFile Name: xlloopkr-win8-1.0.xll"]
[null,{"$f":"IF(C7=\"\", \"\", B6+1)","v":""}]
[null,""]
[null,""]
[null,""]
[null,""]
[null,""]
[null,""]
[null,""]
[null,""]
[null,""]
[null,""]
[null,""]
[null,""]
[null,""]
[null,""]
[null,""]
[null,""]
[null,""]
[null,""]